fUST/lending_fUST_20240413
["ID","MTS","AMOUNT","RATE_DAILY","PERIOD"]
[322424560,1712992243900,-416.0,0.00037654,35]
[322424562,1712992243909,-150.5,0.0003766,35]
[322424564,1712992243918,-876.0,0.0003766,35]
[322424566,1712992243927,-150.5,0.00037664,35]
[322424568,1712992243937,-416.0,0.00037664,35]
[322424570,1712992243946,-500.0,0.00037665,7]
[322424572,1712992243956,-500.0,0.00037665,7]
[322424574,1712992243967,-500.0,0.00037665,7]
[322424576,1712992243977,-506.2298719,0.00037665,7]
[322424578,1712992243986,-500.0,0.00037665,7]
[322424580,1712992243995,-588.54238469,0.00037665,7]
[322424582,1712992244007,-500.0,0.00037667,7]
[322424584,1712992244017,-500.0,0.00037667,7]
[322424587,1712992244027,-500.0,0.00037668,7]
[322424588,1712992244036,-500.0,0.00037668,7]
[322424590,1712992244046,-500.0,0.00037668,7]
[322424592,1712992244055,-500.41206673,0.00037668,7]
[322424594,1712992244065,-500.0,0.00037668,7]
[322424597,1712992244075,-500.0,0.00037668,7]
[322424598,1712992244084,-501.92387107,0.00037668,7]
[322424600,1712992244094,-500.0,0.00037668,7]
[322424602,1712992244103,-500.0,0.00037668,7]
[322424604,1712992244114,-500.0,0.00037668,7]
[322424606,1712992244124,-500.0,0.00037668,7]
[322424608,1712992244133,-500.0,0.00037668,7]
[322424610,1712992244142,-500.59272829,0.00037668,7]
[322424612,1712992244151,-301.58630501,0.00037668,7]
[322424614,1712992244160,-500.0,0.00037668,7]
[322424616,1712992244169,-500.0,0.00037668,7]
[322424618,1712992244178,-500.0,0.00037668,7]
[322424620,1712992244187,-500.0,0.00037668,7]
[322424622,1712992244196,-500.0,0.00037668,7]
[322424624,1712992244205,-413.58826694,0.00037668,7]
[322424626,1712992244214,-150.5,0.0003767,35]
[322424628,1712992244223,-876.0,0.0003767,35]
[322424630,1712992244232,-500.0,0.00037672,7]
[322424632,1712992244241,-394.89314671,0.00037672,7]
[322424634,1712992244252,-887.42344594,0.00037672,4]
[322424636,1712992244266,-516.52882906,0.00037672,4]
[322424638,1712992244276,-209.16026191,0.00037672,4]
[322424640,1712992244285,-1223.10201171,0.00037672,4]
[322424642,1712992244294,-500.0,0.00037673,7]
[322424644,1712992244303,-500.0,0.00037673,7]
[322424646,1712992244312,-500.0,0.00037673,7]
[322424648,1712992244321,-500.0,0.00037673,7]
[322424650,1712992244330,-219.28494068,0.00037673,7]
[322424652,1712992244339,-12159.52,0.00037673,7]
[322424654,1712992244348,-500.0,0.00037673,7]
[322424656,1712992244358,-233.69010313,0.00037673,4]
[322424658,1712992244367,-1534.38381101,0.00037674,4]
[322424660,1712992244377,-1014.05805107,0.00037674,4]
[322424662,1712992244386,-359.50186365,0.00037674,20]
[322424664,1712992244395,-155.12720431,0.00037674,2]
[322424666,1712992244404,-1566.2612075,0.00037674,4]
[322424668,1712992244413,-276.22880515,0.00037674,2]
[322424670,1712992244421,-190.13793507,0.00037674,4]
[322424672,1712992244430,-18625.42501199,0.00037674,4]
[322424674,1712992244439,-151.0,0.00037674,2]
[322424676,1712992244448,-207.500301,0.00037674,2]
[322424678,1712992244457,-151.0,0.00037674,2]
[322424680,1712992244466,-151.0,0.00037674,2]
[322424682,1712992244475,-151.0,0.00037674,2]
[322424684,1712992244484,-151.0,0.00037674,2]
[322424686,1712992244493,-151.0,0.00037674,2]
[322424688,1712992244503,-151.0,0.00037674,2]
[322424690,1712992244515,-273.983714,0.00037674,2]
[322424692,1712992244525,-151.0,0.00037674,2]
[322424694,1712992244535,-155.211248,0.00037674,2]
[322424696,1712992244543,-151.0,0.00037674,2]
[322424698,1712992244553,-151.0,0.00037674,2]
[322424700,1712992244562,-151.0,0.00037674,2]
[322424702,1712992244571,-151.0,0.00037674,2]
[322424704,1712992244581,-151.0,0.00037675,2]
[322424706,1712992244591,-151.0,0.00037675,2]
[322424708,1712992244600,-151.0,0.00037675,2]
[322424710,1712992244610,-151.0,0.00037675,2]
[322424712,1712992244620,-151.0,0.00037675,2]
[322424714,1712992244630,-151.0,0.00037675,2]
[322424716,1712992244639,-151.0,0.00037675,2]
[322424717,1712992244650,-151.0,0.00037675,2]
[322424719,1712992244660,-151.0,0.00037675,2]
[322424720,1712992244669,-306.260806,0.00037675,2]
[322424722,1712992244679,-306.260806,0.00037675,2]
[322424724,1712992244688,-306.260806,0.00037675,2]
[322424726,1712992244702,-306.260806,0.00037675,2]
[322424728,1712992244711,-306.260806,0.00037675,2]
[322424730,1712992244722,-306.260806,0.00037675,2]
[322424732,1712992244732,-306.260806,0.00037675,2]
[322424734,1712992244742,-306.260806,0.00037675,2]
[322424736,1712992244754,-306.260806,0.00037675,2]
[322424738,1712992244766,-306.260806,0.00037675,2]
[322424740,1712992244776,-151.0,0.00037675,2]
[322424742,1712992244787,-151.0,0.00037675,2]
[322424744,1712992244797,-154.619587,0.00037675,2]
[322424745,1712992244807,-151.0,0.00037675,2]
[322424747,1712992244817,-151.0,0.00037675,2]
[322424748,1712992244828,-151.0,0.00037675,2]
[322424749,1712992244839,-151.0,0.00037675,2]
[322424750,1712992244849,-151.0,0.00037675,2]
[322424751,1712992244859,-151.0,0.00037675,2]
[322424752,1712992244870,-151.0,0.00037675,2]
[322424753,1712992244880,-151.0,0.00037675,2]
[322424754,1712992244890,-151.0,0.00037675,2]
[322424755,1712992244900,-151.0,0.00037675,2]
[322424756,1712992244910,-151.0,0.00037675,2]
[322424758,1712992244920,-151.0,0.00037675,2]
[322424760,1712992244930,-151.0,0.00037675,2]
[322424762,1712992244940,-151.0,0.00037675,2]
[322424764,1712992244951,-151.0,0.00037675,2]
[322424766,1712992244961,-151.0,0.00037675,2]
[322424777,1712992245053,-182.614689,0.00037675,2]
[322424778,1712992245072,-447.7409,0.00037675,2]
[322424780,1712992245081,-447.7409,0.00037675,2]
[322424782,1712992245091,-447.7409,0.00037675,2]
[322424784,1712992245101,-447.7409,0.00037675,2]
[322424786,1712992245110,-447.7409,0.00037675,2]
[322424788,1712992245120,-587.66419,0.00037675,2]
[322424790,1712992245129,-587.66419,0.00037675,2]
[322424792,1712992245138,-587.66419,0.00037675,2]
[322424794,1712992245147,-587.66419,0.00037675,2]
[322424796,1712992245157,-587.66419,0.00037675,2]
[322424798,1712992245166,-447.7409,0.00037675,2]
[322424800,1712992245176,-447.7409,0.00037675,2]
[322424802,1712992245185,-447.7409,0.00037675,2]
[322424804,1712992245194,-447.7409,0.00037675,2]
[322424806,1712992245203,-447.7409,0.00037675,2]
[322424808,1712992245212,-587.66419,0.00037675,2]
[322424810,1712992245221,-587.66419,0.00037675,2]
[322424812,1712992245230,-587.66419,0.00037675,2]
[322424814,1712992245239,-587.66419,0.00037675,2]
[322424816,1712992245248,-587.66419,0.00037675,2]
[322424818,1712992245257,-154.803619,0.00037675,2]
[322424820,1712992245266,-151.0,0.00037675,2]
[322424822,1712992245275,-151.603787,0.00037675,2]
[322424824,1712992245285,-151.0,0.00037675,2]
[322424826,1712992245294,-151.0,0.00037675,2]
[322424828,1712992245303,-151.0,0.00037675,2]
[322424830,1712992245313,-173.634565,0.00037675,2]
[322424832,1712992245322,-213.582237,0.00037675,2]
[322424834,1712992245331,-213.582237,0.00037675,2]
[322424835,1712992245339,-213.582237,0.00037675,2]
[322424837,1712992245348,-213.582237,0.00037675,2]
[322424839,1712992245358,-213.582237,0.00037675,2]
[322424841,1712992245367,-213.582237,0.00037675,2]
[322424843,1712992245376,-213.582237,0.00037675,2]
[322424845,1712992245385,-213.582237,0.00037675,2]
[322424847,1712992245394,-213.582237,0.00037675,2]
[322424849,1712992245403,-213.582237,0.00037675,2]
[322424851,1712992245411,-1872.421823,0.00037675,2]
[322424853,1712992245420,-1872.421823,0.00037675,2]
[322424855,1712992245430,-1872.421823,0.00037675,2]
[322424857,1712992245439,-1872.421823,0.00037675,2]
[322424859,1712992245448,-1872.421823,0.00037675,2]
[322424861,1712992245456,-1872.421823,0.00037675,2]
[322424863,1712992245465,-1872.421823,0.00037675,2]
[322424864,1712992245475,-1872.421823,0.00037675,2]
[322424867,1712992245485,-1872.421823,0.00037675,2]
[322424868,1712992245494,-1872.421823,0.00037675,2]
[322424870,1712992245503,-151.0,0.00037675,2]
[322424872,1712992245513,-151.0,0.00037675,2]
[322424874,1712992245522,-151.0,0.00037675,2]
[322424876,1712992245531,-153.324263,0.00037675,2]
[322424878,1712992245539,-399.308516,0.00037675,2]
[322424880,1712992245549,-399.308516,0.00037675,2]
[322424882,1712992245558,-399.308516,0.00037675,2]
[322424884,1712992245567,-399.308516,0.00037675,2]
[322424886,1712992245576,-399.308516,0.00037675,2]
[322424888,1712992245584,-399.308516,0.00037675,2]
[322424890,1712992245593,-399.308516,0.00037675,2]
[322424892,1712992245602,-399.308516,0.00037675,2]
[322424894,1712992245612,-399.308516,0.00037675,2]
[322424895,1712992245621,-399.308516,0.00037675,2]
[322424897,1712992245630,-151.0,0.00037675,2]
[322424899,1712992245639,-151.0,0.00037675,2]
[322424901,1712992245648,-158.557949,0.00037675,2]
[322424903,1712992245657,-280.812343,0.00037675,2]
[322424905,1712992245666,-151.0,0.00037675,2]
[322424907,1712992245675,-151.0,0.00037675,2]
[322424909,1712992245683,-151.0,0.00037675,2]
[322424911,1712992245693,-151.0,0.00037675,2]
[322424913,1712992245702,-151.0,0.00037675,2]
[322424915,1712992245711,-151.0,0.00037675,2]
[322424917,1712992245720,-151.0,0.00037675,2]
[322424919,1712992245729,-155.387122,0.00037675,2]
[322424921,1712992245738,-151.0,0.00037675,2]
[322424923,1712992245747,-1874.159298,0.00037675,2]
[322424925,1712992245757,-1874.159298,0.00037675,2]
[322424927,1712992245765,-1874.159298,0.00037675,2]
[322424929,1712992245774,-1874.159298,0.00037675,2]
[322424931,1712992245783,-1874.159298,0.00037675,2]
[322424933,1712992245792,-1874.159298,0.00037675,2]
[322424936,1712992245801,-1874.159298,0.00037675,2]
[322424938,1712992245811,-1874.159298,0.00037675,2]
[322424941,1712992245820,-1874.159298,0.00037675,2]
[322424943,1712992245829,-1874.159298,0.00037675,2]
[322424945,1712992245838,-256.17989,0.00037675,2]
[322424947,1712992245847,-256.17989,0.00037675,2]
[322424949,1712992245856,-256.17989,0.00037675,2]
[322424952,1712992245866,-256.17989,0.00037675,2]
[322424954,1712992245875,-182689.75470846,0.00037675,60]
[322424955,1712992245883,-565.3174782,0.00037675,30]
[322424957,1712992245893,-956.85972954,0.00037675,120]
[322424959,1712992245902,-503.32856944,0.00037675,30]
[322424961,1712992245911,-87768.61295197,0.00037675,2]
[322424964,1712992245920,-905.0,0.00037675,30]
[322424967,1712992245928,-905.0,0.00037675,30]
[322424969,1712992245937,-905.0,0.00037675,30]
[322424972,1712992245946,-905.0,0.00037675,30]
[322424975,1712992245960,-905.0,0.00037675,30]
[322424978,1712992245969,-905.0,0.00037675,30]
[322424981,1712992245978,-926.75919761,0.00037675,30]
[322424984,1712992245987,-648257.54842278,0.00037675,60]
[322425004,1712992246076,-256.17989,0.00037675,2]
[322425007,1712992246084,-346.82765491,0.00037675,60]
[322425063,1712992246528,-1676.10726515,0.00037673,4]
[322425065,1712992246538,-256.17989,0.00037675,2]
[322425067,1712992246546,-256.17989,0.00037675,2]
[322425069,1712992246555,-256.17989,0.00037675,2]
[322425071,1712992246564,-256.17989,0.00037675,2]
[322425073,1712992246573,-256.17989,0.00037675,2]
[322425075,1712992246582,-12042.99328485,0.00037675,60]
[322430318,1712993439387,-2917.08069471,0.00027396,2]
[322430321,1712993439400,-188.80104,0.00027397,2]
[322430323,1712993439411,-163.696079,0.00027397,2]
[322430325,1712993439422,-592.75081258,0.00035575,2]
[322430327,1712993439433,-454.59,0.00035616,2]
[322430329,1712993439443,-295.412596,0.00036513,2]
[322430331,1712993439454,-157.31099709,0.00037097,7]
[322430333,1712993439466,-162.53445589,0.00037453,8]
[322430335,1712993439476,-2000.0,0.00037496,2]
[322430337,1712993439487,-153.0,0.000375,2]
[322430339,1712993439498,-153.0,0.000375,2]
[322430341,1712993439509,-153.0,0.000375,2]
[322430343,1712993439521,-13028.70346636,0.00037511,2]
[322430345,1712993439531,-2361.61814157,0.00037553,2]
[322430347,1712993439542,-233.69010313,0.00037593,4]
[322430349,1712993439552,-887.42344594,0.00037593,4]
[322430351,1712993439563,-516.52882906,0.00037593,4]
[322430353,1712993439573,-1223.10201171,0.00037593,4]
[322430355,1712993439584,-209.16026191,0.00037593,4]
[322430357,1712993439595,-500.0,0.00037593,7]
[322430359,1712993439605,-3144.55,0.00037594,7]
[322430361,1712993439616,-500.0,0.00037594,7]
[322430363,1712993439627,-3339.51,0.00037594,7]
[322430366,1712993439637,-1050.69,0.00037594,7]
[322430368,1712993439649,-1107.97,0.00037594,7]
[322430370,1712993439659,-619.98389421,0.00037594,7]
[322430372,1712993439669,-571.20110737,0.00037594,7]
[322430374,1712993439680,-530.72,0.00037594,7]
[322430376,1712993439691,-929.18,0.00037594,7]
[322430378,1712993439702,-500.0,0.00037594,7]
[322430380,1712993439713,-1233.57,0.00037594,7]
[322430382,1712993439722,-500.0,0.00037594,7]
[322430384,1712993439732,-500.0,0.00037594,7]
[322430386,1712993439741,-176.77600026,0.00037594,7]
[322430388,1712993439750,-4361.38,0.00037594,7]
[322430390,1712993439759,-1270.06,0.00037594,7]
[322430391,1712993439770,-1557.88,0.00037594,7]
[322430409,1712993439937,-1664.75,0.00037594,7]
[322430412,1712993439954,-500.0,0.00037594,7]
[322430414,1712993439964,-298.81347776,0.00037594,7]
[322430415,1712993439973,-500.0,0.00037595,7]
[322430417,1712993439982,-500.0,0.00037595,14]
[322430419,1712993439991,-506.33,0.00037595,7]
[322430421,1712993440000,-500.0,0.00037595,7]
[322430423,1712993440009,-502.45562532,0.00037595,7]
[322430425,1712993440019,-500.0,0.00037595,7]
[322430427,1712993440028,-500.0,0.00037595,7]
[322430429,1712993440037,-500.0,0.00037595,7]
[322430431,1712993440046,-351.11361847,0.00037595,7]
[322430432,1712993440056,-500.0,0.00037595,7]
[322430434,1712993440065,-272.3842325,0.00037595,7]
[322430436,1712993440074,-500.0,0.00037595,7]
[322430438,1712993440083,-500.0,0.00037595,7]
[322430440,1712993440092,-500.0,0.00037595,7]
[322430442,1712993440101,-500.0,0.00037595,7]
[322430444,1712993440111,-500.0,0.00037595,7]
[322430447,1712993440120,-269.97863865,0.00037595,7]
[322430449,1712993440129,-500.0,0.00037595,7]
[322430450,1712993440138,-732.76,0.00037595,7]
[322430452,1712993440147,-506.27057789,0.00037595,7]
[322430454,1712993440156,-1608.44,0.00037595,7]
[322430456,1712993440165,-500.0,0.00037595,7]
[322430458,1712993440173,-500.72760287,0.00037595,7]
[322430460,1712993440183,-500.0,0.00037595,7]
[322430462,1712993440191,-500.0,0.00037595,7]
[322430464,1712993440200,-507.29782112,0.00037595,7]
[322430466,1712993440209,-500.65378748,0.00037595,7]
[322430467,1712993440218,-500.0,0.00037595,7]
[322430469,1712993440227,-500.0,0.00037595,7]
[322430471,1712993440236,-500.0,0.00037595,7]
[322430473,1712993440245,-873.38,0.00037595,7]
[322430475,1712993440254,-1412.82,0.00037595,7]
[322430477,1712993440263,-500.0,0.00037595,7]
[322430479,1712993440274,-500.0,0.00037595,7]
[322430481,1712993440283,-500.0,0.00037595,7]
[322430483,1712993440293,-500.0,0.00037595,7]
[322430485,1712993440302,-503.35510766,0.00037595,7]
[322430487,1712993440312,-500.0,0.00037595,7]
[322430489,1712993440324,-227.86940097,0.00037595,7]
[322430491,1712993440332,-1007.54,0.00037595,7]
[322430493,1712993440342,-500.0,0.00037595,7]
[322430495,1712993440351,-500.0,0.00037595,7]
[322430496,1712993440361,-500.0,0.00037595,7]
[322430498,1712993440371,-500.0,0.00037595,7]
[322430500,1712993440380,-500.0,0.00037595,7]
[322430502,1712993440390,-500.0,0.00037595,7]
[322430504,1712993440399,-500.0,0.00037595,7]
[322430506,1712993440409,-500.0,0.00037595,7]
[322430508,1712993440418,-500.0,0.00037595,7]
[322430510,1712993440427,-984.77,0.00037595,7]
[322430512,1712993440436,-500.0,0.00037595,7]
[322430514,1712993440445,-153.39951599,0.00037595,7]
[322430516,1712993440454,-3307.47,0.00037595,7]
[322430518,1712993440463,-557.83602978,0.00037595,7]
[322430520,1712993440472,-502.24177056,0.00037595,7]
[322430522,1712993440481,-2886.95,0.00037595,7]
[322430524,1712993440489,-500.0,0.00037595,7]
[322430525,1712993440498,-501.22741325,0.00037595,7]
[322430527,1712993440507,-557.56,0.00037595,7]
[322430529,1712993440517,-500.0,0.00037595,7]
[322430531,1712993440526,-500.0,0.00037595,7]
[322430533,1712993440535,-500.0,0.00037595,7]
[322430535,1712993440545,-2613.02,0.00037595,7]
[322430537,1712993440553,-500.0,0.00037595,7]
[322430539,1712993440573,-500.0,0.00037595,7]
[322430541,1712993440584,-500.0,0.00037595,7]
[322430543,1712993440593,-500.0,0.00037595,7]
[322430544,1712993440602,-1641.53,0.00037595,7]
[322430546,1712993440613,-500.0,0.00037595,7]
[322430548,1712993440624,-505.34467129,0.00037595,7]
[322430550,1712993440633,-500.0,0.00037595,7]
[322430552,1712993440643,-500.0,0.00037595,7]
[322430554,1712993440653,-500.0,0.00037595,7]
[322430556,1712993440662,-500.0,0.00037595,7]
[322430558,1712993440672,-1280.47,0.00037595,7]
[322430560,1712993440682,-1282.92,0.00037595,7]
[322430562,1712993440691,-500.0,0.00037595,7]
[322430564,1712993440701,-200.75875524,0.00037595,7]
[322430566,1712993440710,-1187.2,0.00037595,7]
[322430568,1712993440719,-500.0,0.00037595,7]
[322430570,1712993440729,-500.0,0.00037595,7]
[322430571,1712993440738,-500.0,0.00037595,7]
[322430573,1712993440748,-567.22,0.00037595,7]
[322430575,1712993440758,-500.0,0.00037595,7]
[322430577,1712993440768,-262.0817509,0.00037595,7]
[322430579,1712993440777,-500.0,0.00037595,7]
[322430581,1712993440788,-500.0,0.00037595,7]
[322430583,1712993440797,-40282.33,0.00037595,7]
[322430585,1712993440806,-561.14403191,0.00037595,7]
[322430587,1712993440816,-500.0,0.00037595,7]
[322430589,1712993440825,-500.0,0.00037595,7]
[322430590,1712993440835,-516.17141057,0.00037595,7]
[322430592,1712993440845,-2973.7,0.00037595,7]
[322430594,1712993440854,-821.42,0.00037595,7]
[322430595,1712993440863,-500.0,0.00037595,7]
[322430596,1712993440873,-500.0,0.00037595,7]
[322430597,1712993440882,-500.0,0.00037595,7]
[322430598,1712993440891,-500.0,0.00037595,7]
[322430599,1712993440901,-500.0,0.00037595,7]
[322430600,1712993440910,-500.0,0.00037595,7]
[322430601,1712993440919,-515.26721432,0.00037595,7]
[322430602,1712993440928,-2321.81,0.00037595,7]
[322430603,1712993440938,-500.0,0.00037595,7]
[322430604,1712993440947,-500.0,0.00037595,7]
[322430605,1712993440957,-500.0,0.00037595,7]
[322430606,1712993440966,-7872.04,0.00037595,7]
[322430607,1712993440975,-521.6243509,0.00037595,7]
[322430608,1712993440985,-868.08,0.00037595,7]
[322430609,1712993440994,-55954.23893715,0.00037596,5]
[322430610,1712993441004,-500.0,0.00037596,7]
[322430611,1712993441013,-500.0,0.00037596,7]
[322430612,1712993441023,-500.0,0.00037596,7]
[322430613,1712993441032,-500.0,0.00037596,7]
[322430614,1712993441042,-317.31078061,0.00037596,7]
[322430615,1712993441052,-500.0,0.00037596,7]
[322430616,1712993441061,-783.33,0.00037596,7]
[322430617,1712993441071,-503.93477192,0.00037596,7]
[322430618,1712993441080,-500.0,0.00037596,7]
[322430619,1712993441090,-205.92793265,0.00037596,7]
[322430620,1712993441099,-500.0,0.00037596,7]
[322430621,1712993441108,-578.42302313,0.00037596,7]
[322430622,1712993441118,-500.0,0.00037596,7]
[322430623,1712993441127,-500.0,0.00037596,7]
[322430624,1712993441136,-500.0,0.00037596,7]
[322430625,1712993441145,-227.54848399,0.00037596,7]
[322430626,1712993441155,-644.79868849,0.00037596,7]
[322430627,1712993441164,-300.0,0.00037596,7]
[322430629,1712993441174,-502.42903162,0.00037596,7]
[322430631,1712993441184,-500.0,0.00037596,7]
[322430633,1712993441192,-501.6044893,0.00037596,7]
[322430635,1712993441202,-1004.01338133,0.00037596,7]
[322430637,1712993441211,-500.0,0.00037596,7]
[322430639,1712993441221,-502.93551014,0.00037596,7]
[322430641,1712993441231,-500.0,0.00037596,7]
[322430643,1712993441240,-500.0,0.00037596,7]
[322430645,1712993441249,-500.0,0.00037596,7]
[322430647,1712993441259,-500.0,0.00037596,7]
[322430649,1712993441268,-500.0,0.00037596,7]
[322430651,1712993441278,-616.05104333,0.00037596,7]
[322430653,1712993441287,-500.0,0.00037596,7]
[322430655,1712993441296,-502.51846755,0.00037596,7]
[322430657,1712993441307,-151.0,0.00037596,7]
[322430659,1712993441316,-500.0,0.00037596,7]
[322430661,1712993441327,-502.41766067,0.00037596,7]
[322430663,1712993441336,-500.0,0.00037596,7]
[322430665,1712993441346,-500.60808878,0.00037596,7]
[322430666,1712993441357,-500.0,0.00037596,7]
[322430668,1712993441369,-500.0,0.00037596,7]
[322430670,1712993441379,-503.81242191,0.00037596,7]
[322430673,1712993441389,-500.0,0.00037596,7]
[322430675,1712993441400,-468.88962965,0.00037596,7]
[322430677,1712993441411,-500.0,0.00037596,7]
[322430679,1712993441419,-3039.36,0.00037596,7]
[322430681,1712993441428,-600.75248345,0.00037596,7]
[322430682,1712993441438,-502.53582593,0.00037596,7]
[322430684,1712993441447,-500.0,0.00037596,7]
[322430686,1712993441458,-1053.2,0.00037596,7]
[322430688,1712993441468,-500.0,0.00037596,7]
[322430690,1712993441477,-500.0,0.00037596,7]
[322430693,1712993441488,-345.51279381,0.00037596,7]
[322430695,1712993441498,-1029.22,0.00037596,7]
[322430696,1712993441507,-500.0,0.00037596,7]
[322430699,1712993441517,-500.0,0.00037596,7]
[322430700,1712993441527,-510.51005403,0.00037596,7]
[322430702,1712993441537,-502.10542521,0.00037596,7]
[322430704,1712993441546,-500.0,0.00037596,7]
[322430706,1712993441556,-500.78951343,0.00037596,7]
[322430708,1712993441566,-500.0,0.00037596,7]
[322430710,1712993441576,-500.0,0.00037596,7]
[322430712,1712993441585,-259.00466111,0.00037596,7]
[322430714,1712993441595,-169.64659078,0.00037596,7]
[322430716,1712993441604,-156.49808185,0.00037596,7]
[322430718,1712993441613,-500.0,0.00037596,7]
[322430720,1712993441623,-500.0,0.00037596,7]
[322430722,1712993441632,-500.0,0.00037596,7]
[322430724,1712993441641,-500.0,0.00037596,7]
[322430726,1712993441650,-500.0,0.00037596,7]
[322430728,1712993441659,-500.0,0.00037596,7]
[322430730,1712993441668,-500.0,0.00037596,7]
[322430732,1712993441677,-500.0,0.00037596,7]
[322430734,1712993441686,-186.98402372,0.00037596,7]
[322430736,1712993441695,-155.72068848,0.00037596,7]
[322430738,1712993441704,-500.0,0.00037596,7]
[322430740,1712993441713,-500.0,0.00037596,7]
[322430742,1712993441723,-500.0,0.00037596,7]
[322430744,1712993441732,-500.0,0.00037596,7]
[322430746,1712993441741,-500.0,0.00037596,7]
[322430748,1712993441750,-165.52530305,0.00037596,7]
[322430750,1712993441759,-576.14087697,0.00037596,7]
[322430752,1712993441769,-500.0,0.00037596,7]
[322430753,1712993441780,-500.0,0.00037596,7]
[322430755,1712993441790,-500.0,0.00037596,7]
[322430757,1712993441799,-505.28751995,0.00037596,7]
[322430759,1712993441809,-500.0,0.00037596,7]
[322430761,1712993441818,-500.0,0.00037596,7]
[322430763,1712993441827,-500.0,0.00037596,7]
[322430765,1712993441836,-501.56934518,0.00037596,7]
[322430767,1712993441845,-500.0,0.00037596,7]
[322430769,1712993441854,-500.0,0.00037596,7]
[322430772,1712993441864,-500.0,0.00037596,7]
[322430773,1712993441873,-500.0,0.00037596,7]
[322430775,1712993441883,-500.0,0.00037596,7]
[322430777,1712993441893,-512.13517562,0.00037596,7]
[322430779,1712993441902,-500.0,0.00037596,7]
[322430781,1712993441911,-500.0,0.00037596,7]
[322430783,1712993441921,-500.0,0.00037596,7]
[322430785,1712993441930,-500.0,0.00037596,7]
[322430787,1712993441939,-504.24733933,0.00037596,7]
[322430789,1712993441948,-500.0,0.00037596,7]
[322430791,1712993441958,-500.0,0.00037596,7]
[322430793,1712993441967,-4884.03,0.00037596,7]
[322430795,1712993441976,-507.26959406,0.00037596,7]
[322430798,1712993441986,-540.5841576,0.00037596,7]
[322430800,1712993441995,-500.0,0.00037596,7]
[322430802,1712993442004,-505.55557365,0.00037596,7]
[322430803,1712993442013,-505.06340822,0.00037596,7]
[322430805,1712993442023,-500.0,0.00037596,7]
[322430807,1712993442033,-500.0,0.00037596,7]
[322430809,1712993442042,-500.0,0.00037596,7]
[322430811,1712993442054,-546.08,0.00037596,7]
[322430813,1712993442062,-507.93374897,0.00037596,7]
[322430815,1712993442072,-1104.44,0.00037596,7]
[322430817,1712993442081,-500.0,0.00037596,7]
[322430819,1712993442089,-735.59,0.00037596,7]
[322430821,1712993442099,-500.0,0.00037596,7]
[322430823,1712993442108,-500.0,0.00037596,7]
[322430825,1712993442117,-1167.79,0.00037596,7]
[322430827,1712993442126,-505.10434053,0.00037596,7]
[322430829,1712993442136,-500.0,0.00037596,7]
[322430831,1712993442145,-523.06514236,0.00037596,7]
[322430833,1712993442155,-500.0,0.00037596,7]
[322430835,1712993442164,-500.0,0.00037596,7]
[322430837,1712993442173,-500.0,0.00037596,7]
[322430839,1712993442181,-500.0,0.00037596,7]
[322430841,1712993442190,-500.0,0.00037596,7]
[322430843,1712993442200,-500.0,0.00037596,7]
[322430845,1712993442209,-500.0,0.00037596,7]
[322430847,1712993442218,-500.0,0.00037596,7]
[322430849,1712993442227,-414.88068387,0.00037596,7]